Workbook

Sheet Sales Chart
C4: SHOW LAST | D4: 7 | E4: YEARS
C5: MONTH AVERAGE

Sheet Sales Data
B7: MONTH | C7: SALES
B8: 2008-01-01 | C8: 75
B9: 2008-02-01 | C9: 80
B10: 2008-03-01 | C10: 98
B11: 2008-04-01 | C11: 82
B12: 2008-05-01 | C12: 84
B13: 2008-06-01 | C13: 145
B14: 2008-07-01 | C14: 161
B15: 2008-08-01 | C15: 140
B16: 2008-09-01 | C16: 78
B17: 2008-10-01 | C17: 94
B18: 2008-11-01 | C18: 90
B19: 2008-12-01 | C19: 80
B20: 2009-01-01 | C20: 71
B21: 2009-02-01 | C21: 82
B22: 2009-03-01 | C22: 96
B23: 2009-04-01 | C23: 81
B24: 2009-05-01 | C24: 84
B25: 2009-06-01 | C25: 120
B26: 2009-07-01 | C26: 159
B27: 2009-08-01 | C27: 124
B28: 2009-09-01 | C28: 74
B29: 2009-10-01 | C29: 75
B30: 2009-11-01 | C30: 65
B31: 2009-12-01 | C31: 55
B32: 2010-01-01 | C32: 67
B33: 2010-02-01 | C33: 83
B34: 2010-03-01 | C34: 115
B35: 2010-04-01 | C35: 83
B36: 2010-05-01 | C36: 83
B37: 2010-06-01 | C37: 142
B38: 2010-07-01 | C38: 157
B39: 2010-08-01 | C39: 73
B40: 2010-09-01 | C40: 58
B41: 2010-10-01 | C41: 52
B42: 2010-11-01 | C42: 48
B43: 2010-12-01 | C43: 41
B44: 2011-01-01 | C44: 77
B45: 2011-02-01 | C45: 74
B46: 2011-03-01 | C46: 117
B47: 2011-04-01 | C47: 81
B48: 2011-05-01 | C48: 82
B49: 2011-06-01 | C49: 143
B50: 2011-07-01 | C50: 210
B51: 2011-08-01 | C51: 145
B52: 2011-09-01 | C52: 75
B53: 2011-10-01 | C53: 51
B54: 2011-11-01 | C54: 50
B55: 2011-12-01 | C55: 82
B56: 2012-01-01 | C56: 95
B57: 2012-02-01 | C57: 95
B58: 2012-03-01 | C58: 151
B59: 2012-04-01 | C59: 118
B60: 2012-05-01 | C60: 74
B61: 2012-06-01 | C61: 109
B62: 2012-07-01 | C62: 128
B63: 2012-08-01 | C63: 120
B64: 2012-09-01 | C64: 55
B65: 2012-10-01 | C65: 52
B66: 2012-11-01 | C66: 46
B67: 2012-12-01 | C67: 53
B68: 2013-01-01 | C68: 63
B69: 2013-02-01 | C69: 47
B70: 2013-03-01 | C70: 90
B71: 2013-04-01 | C71: 60
B72: 2013-05-01 | C72: 74
B73: 2013-06-01 | C73: 109
B74: 2013-07-01 | C74: 122
B75: 2013-08-01 | C75: 110
B76: 2013-09-01 | C76: 49
B77: 2013-10-01 | C77: 50
B78: 2013-11-01 | C78: 68
B79: 2013-12-01 | C79: 70
B80: 2014-01-01 | C80: 58
B81: 2014-02-01 | C81: 46
B82: 2014-03-01 | C82: 74
B83: 2014-04-01 | C83: 52
B84: 2014-05-01 | C84: 61
B85: 2014-06-01 | C85: 110
B86: 2014-07-01 | C86: 131
B87: 2014-08-01 | C87: 94
B88: 2014-09-01 | C88: 38
B89: 2014-10-01 | C89: 53
B90: 2014-11-01 | C90: 57
B91: 2014-12-01 | C91: 86

Sheet calculations (hidden)
B1: *** This sheet to remain hidden ***
F2: Cycles: | G2: ='Sales Chart'!D4 -> 7 | I2: Label Offset: | J2: -0.75
I3: Cycle #: | J3: =zcp01_cycles -> 7
J4: x | K4: y
I5: JAN | J5: =INDEX(zcp01_period_01x,$J$3)+$J$2 -> 12.25 | K5: =INDEX(zcp01_period_01y,$J$3) -> 58
B6: ="TIP: Each cluster represents that month's actual sales for the past " & 'Sales Chart'!D4 & " years." -> TIP: Each cluster represents that month's actual sales for the past 7 years. | I6: FEB | J6: =INDEX(zcp01_period_02x,$J$3)+$J$2 -> 24.25 | K6: =INDEX(zcp01_period_02y,$J$3) -> 46
I7: MAR | J7: =INDEX(zcp01_period_03x,$J$3)+$J$2 -> 36.25 | K7: =INDEX(zcp01_period_03y,$J$3) -> 74
I8: APR | J8: =INDEX(zcp01_period_04x,$J$3)+$J$2 -> 48.25 | K8: =INDEX(zcp01_period_04y,$J$3) -> 52
I9: MAY | J9: =INDEX(zcp01_period_05x,$J$3)+$J$2 -> 60.25 | K9: =INDEX(zcp01_period_05y,$J$3) -> 61
I10: JUN | J10: =INDEX(zcp01_period_06x,$J$3)+$J$2 -> 72.25 | K10: =INDEX(zcp01_period_06y,$J$3) -> 110
I11: JUL | J11: =INDEX(zcp01_period_07x,$J$3)+$J$2 -> 84.25 | K11: =INDEX(zcp01_period_07y,$J$3) -> 131
I12: AUG | J12: =INDEX(zcp01_period_08x,$J$3)+$J$2 -> 96.25 | K12: =INDEX(zcp01_period_08y,$J$3) -> 94
I13: SEP | J13: =INDEX(zcp01_period_09x,$J$3)+$J$2 -> 108.25 | K13: =INDEX(zcp01_period_09y,$J$3) -> 38
I14: OCT | J14: =INDEX(zcp01_period_10x,$J$3)+$J$2 -> 120.25 | K14: =INDEX(zcp01_period_10y,$J$3) -> 53
I15: NOV | J15: =INDEX(zcp01_period_11x,$J$3)+$J$2 -> 132.25 | K15: =INDEX(zcp01_period_11y,$J$3) -> 57
I16: DEC | J16: =INDEX(zcp01_period_12x,$J$3)+$J$2 -> 144.25 | K16: =INDEX(zcp01_period_12y,$J$3) -> 86
